Cogmind - Beta 10 X1 @@@ ROGUE MODE // 2020.06.13 @ 13:19:10 Player: cptwinky Result: Destroyed by G-73 Enforcer with Phase Gun Performance ------------- Evolutions (9) 4500 Regions Visited (31) 6200 Robots Destroyed (370) 1850 Value Destroyed (14316) 14316 Prototype IDs (72) 1440 Alien Tech Used (3) 600 Bonus (5987) 5987 TOTAL SCORE: 34893 Bonus ------- High Alert Combat Kills 2032 Follower Combat Kills 2461 Entered Garrisons 800 Used RIF Installer 2000 Met Data Miner 300 Met Zhirov 300 Scanned by Researcher 500 Friendly Fire -2406 Cogmind --------- Core Integrity 0/1600 Matter 156/300 Energy 99/100 System Corruption 7% Temperature Cool (9) Movement Core (50) Location -1/Access Parts ------- > --- POWER (2) -------- (None) > --- PROPULSION (6) --- Gyrokinetic Inverter Gyrokinetic Inverter > --- UTILITY (15) ----- Advanced Armor Integrity Analyzer > --- WEAPON (2) ------- (None) > --- INVENTORY (4) ---- Advanced Force Field Tachyon Dispersion Ray Cooled Nova Cannon Advanced Remote Datajack Peak State ------------ > --- POWER ------------ Heavy Antimatter Reactor Light Quantum Reactor > --- PROPULSION ------- Improved Antigrav System Improved Antigrav System Improved Gyrokinetic Inverter Improved Linear Gravjet Antigrav Array > --- UTILITY ---------- Advanced Cooling System Large Storage Unit Large Storage Unit Experimental Sensor Array Advanced Signal Interpreter Experimental Transmission Jammer Layered Medium Armor Plating Improved Hacking Suite Advanced Hacking Suite System Shield Improved System Shield Ghost Barrier Relay Coupler [NC] > --- WEAPON ----------- Cooled Nova Cannon Ionic Axe > --- INVENTORY -------- Advanced Armor Integrity Analyzer Nanoactuators Reaction Control System Advanced Reaction Control System Improved Medium Armor Plating Advanced Force Field Relay Coupler [Sentry] System Restoration Module Transdimensional Reconstructor Tachyon Dispersion Ray Mini Smartbomb Launcher Mini Smartbomb Launcher Improved Remote Datajack Advanced Remote Datajack Vibroblade [Rating: 152] Favorites ----------- Power Micro Fission Core Engine Improved Deuterium Engine Power Core Micro Fission Core Reactor Mini Fusion Reactor Propulsion Cooled Gravmag System Treads Light Treads Leg Improved Titanium Leg Wheel Compact Wheel Hover Unit Cooled Gravmag System Utility Large Storage Unit Device Experimental Heat Sink Storage Large Storage Unit Processor Advanced Signal Interpreter Hackware Improved System Shield Protection Centrium Light Armor Plating Artifact Matter Drive Weapon Power Sword Energy Gun EM Pulse Gun Energy Cannon Advanced Beam Cannon Ballistic Gun Enhanced Autogun Launcher Mini Smartbomb Launcher Special Weapon Improved Remote Datajack Slashing Weapon Power Sword Piercing Weapon Lance Special Melee Weapon Improved Datajack Build | -11 -10 -10 -9 -8 -8 -8 -7 -7 -7 -7 -7 -7 -6 -6 -6 -6 -6 -5 -5 -5 -5 -4 -4 -4 -4 -4 -3 -3 -2 -2 -1 ------- Run | Scr Mat Min Mat Mat Gar Sto Fac Gar Fac Low Low Dat Pro Fac Was Fac Gar Fac Upp Upp Zhi Pro Fac Was Fac Gar Res Tes Res Qua Acc Slots Evolved 18 | . . . 2 2 . . 2 . . . . . . 2 . . . 2 . . . . 2 . . . 2 . 2 . 2 Power 1 | . . . . . . . . . . . . . . 1 . . . . . . . . . . . . . . . . . Propulsion 4 | . . . . 1 . . . . . . . . . 1 . . . . . . . . 1 . . . . . 1 . . Utility 13 | . . . 2 1 . . 2 . . . . . . . . . . 2 . . . . 1 . . . 2 . 1 . 2 Weapon . | . . . . . . . . . . . . . . . . . . . . . . . . . . . . . . . . Parts Attached 502 | 6 5 9 26 32 7 31 19 4 47 3 4 . 2 9 3 72 3 101 11 3 2 . 5 2 10 7 7 14 22 17 19 Power 43 | 1 . . 3 2 . 3 3 1 3 . . . . 3 . 10 2 6 . . . . . . 2 . . 1 2 . 1 Engine 18 | 1 . . 3 2 . 2 1 1 2 . . . . 1 . 3 1 1 . . . . . . . . . . . . . Core 16 | . . . . . . 1 1 . 1 . . . . 1 . 4 1 5 . . . . . . 2 . . . . . . Reactor 9 | . . . . . . . 1 . . . . . . 1 . 3 . . . . . . . . . . . 1 2 . 1 Propulsion 85 | 2 2 . 5 11 2 7 2 . 10 . . . . 1 . 8 . 13 4 . . . 1 . 3 . 2 . 4 1 7 Treads 21 | 1 1 . 4 8 1 4 . . . . . . . . . . . . 1 . . . . . . . . . . . 1 Leg 1 | . . . . . . . . . . . . . . . . . . . 1 . . . . . . . . . . . . Wheel 7 | 1 1 . 1 3 1 . . . . . . . . . . . . . . . . . . . . . . . . . . Hover 56 | . . . . . . 3 2 . 10 . . . . 1 . 8 . 13 2 . . . 1 . 3 . 2 . 4 1 6 Flight . | . . . . . . . . . . . . . . . . . . . . . . . . . . . . . . . . Utility 189 | 1 3 . 5 8 2 10 6 . 13 1 1 . 2 1 3 44 1 37 2 3 2 . 3 2 3 2 5 6 12 4 7 Device 87 | . . . . 4 1 3 1 . 2 . . . 2 . 1 25 1 16 2 3 1 . . 2 2 1 4 3 8 1 4 Storage 14 | 1 3 . 2 2 . 1 . . . . . . . . 1 1 . 2 . . . . . . . . . 1 . . . Processor 6 | . . . . . . . 1 . 1 . . . . . . 1 . . . . . . . . . . 1 . . . 2 Hackware 28 | . . . . . . 3 1 . 3 . . . . 1 . 4 . 7 . . . . 3 . . . . 2 3 1 . Protection 53 | . . . 3 2 1 3 3 . 7 1 1 . . . 1 13 . 12 . . 1 . . . 1 1 . . 1 2 . Artifact 1 | . . . . . . . . . . . . . . . . . . . . . . . . . . . . . . . 1 Weapon 185 | 2 . 9 13 11 3 11 8 3 21 2 3 . . 4 . 10 . 45 5 . . . 1 . 2 5 . 7 4 12 4 Energy Gun 22 | . . 2 4 5 . 1 1 1 1 1 . . . . . . . 2 2 . . . . . 1 1 . . . . . Energy Cannon 4 | . . . . . 1 . . . . . . . . . . . . . . . . . . . . . . 1 . 2 . Ballistic Gun 50 | 2 . 4 3 3 2 6 3 2 8 1 1 . . . . 1 . 10 2 . . . . . 1 1 . . . . . Ballistic Cannon . | . . . . . . . . . . . . . . . . . . . . . . . . . . . . . . . . Launcher 30 | . . 2 3 1 . . . . 1 . 1 . . 1 . 2 . 9 . . . . . . . 2 . 4 1 2 1 Special Weapon 19 | . . 1 3 . . 1 . . 3 . . . . . . 1 . 4 . . . . . . . 1 . 2 . 2 1 Impact Weapon . | . . . . . . . . . . . . . . . . . . . . . . . . . . . . . . . . Slashing Weapon 37 | . . . . . . . 3 . 7 . 1 . . 3 . 6 . 6 . . . . 1 . . . . . 3 6 1 Piercing Weapon 14 | . . . . . . . . . . . . . . . . . . 12 1 . . . . . . . . . . . 1 Special Melee Weapon 9 | . . . . 2 . 3 1 . 1 . . . . . . . . 2 . . . . . . . . . . . . . Unidentified Prototypes 13 | . . . . . . 2 1 . 1 . . . . . 1 2 . . . . 2 . . . . . . 1 2 . 1 Parts Lost 79 | . . 3 8 4 3 2 2 . 1 . . . . . . 3 2 7 . 1 . 7 . . . . 1 1 . 5 29 Power 8 | . . . . . . . 2 . . . . . . . . 1 1 1 . . . . . . . . . . . 1 2 Propulsion 16 | . . . 2 1 1 . . . . . . . . . . . . 1 . . . 1 . . . . . . . 3 7 Utility 34 | . . . . . 1 1 . . 1 . . . . . . 2 1 4 . 1 . 4 . . . . 1 1 . 1 16 Weapon 21 | . . 3 6 3 1 1 . . . . . . . . . . . 1 . . . 2 . . . . . . . . 4 Highest Loss Streak 18 | . . 1 4 2 3 1 1 . 1 . . . . . . 2 2 3 . 1 . 4 . . . . 1 1 . 4 18 Average Slot Usage (%) 96 | . 98 98 93 98 99 99 95 100 99 100 94 92 92 92 100 98 99 98 100 95 98 84 69 83 97 100 95 95 94 93 64 Engine 3 | . 14 14 11 9 9 8 . 4 6 7 7 7 7 6 6 1 1 . . . . . . . . . . . . . . Core 4 | . . . . . . . 6 . . . . . . . . 4 8 10 11 11 11 11 10 10 10 10 9 5 . . . Reactor 1 | . . . . . . . . 2 . . . . . 4 6 5 1 . . . . . . . . . . 2 7 7 3 Treads 3 | . 14 14 13 17 21 17 . . . . . . . . . . . . . . . . . . . . . . . . 1 Wheel 2 | . 14 14 8 8 4 8 . . . . . . . . . . . . . . . . . . . . . . . . . Hover 17 | . . . . . . . 23 23 23 23 23 23 23 26 26 25 26 22 23 23 23 19 16 21 25 26 20 19 20 19 8 Device 8 | . . . . 8 9 6 13 15 11 7 7 7 10 13 13 10 10 5 11 12 15 13 5 10 15 11 17 14 11 12 10 Storage 12 | . 26 28 29 27 27 26 7 7 7 7 7 7 7 6 6 5 6 10 11 11 11 11 10 10 10 10 9 9 8 8 6 Hackware 14 | . . . . . . 5 9 15 12 9 7 7 7 12 13 19 15 22 17 11 11 7 16 21 21 21 19 22 26 26 18 Protection 11 | . . . 9 9 9 6 13 15 20 27 30 30 26 13 13 9 13 11 11 11 11 9 5 5 4 8 9 4 4 3 . Energy Gun 1 | . . 12 12 8 . . . . . . . . . . . . . . 1 . . . . . 3 . . . . . . Ballistic Gun 6 | . 28 11 3 9 17 16 12 14 12 15 4 . . . . . . 2 3 5 5 2 . . . 2 . . . . . Slashing Weapon 3 | . . . . . . . 2 . 1 . 4 7 7 6 13 12 13 3 . . . . 4 5 5 5 4 4 7 7 6 Piercing Weapon 1 | . . . . . . . . . . . . . . . . . . 3 4 5 5 4 . . . . . . . . . Naked Turns . | . . . . . . . . . . . . . . . . . . . . . . . . . . . . . . . . Heaviest Build 88 | 11 55 55 78 76 74 83 40 46 48 48 48 47 48 54 55 66 63 79 76 76 76 76 59 63 70 75 76 86 85 88 80 Greatest Support 100 | 16 40 16 40 40 60 44 47 47 69 75 51 51 51 68 68 100 68 100 75 75 75 75 73 89 86 85 85 79 100 100 68 Greatest Overweight (x) 6 | . 3 3 4 6 6 6 . . 1 . . . . . . 1 . 1 1 1 1 1 . . . . . 1 1 1 3 Average Overweight (x) . | . 2 3 2 3 4 3 . . . . . . . . . . . . . . . . . . . . . . . . . Largest Inventory Capacity 24 | 6 18 18 24 22 22 24 10 10 10 10 10 10 10 10 10 10 10 16 16 16 16 16 16 16 16 16 16 16 16 16 16 Average Capacity 14 | 5 15 18 21 22 22 22 10 10 10 10 10 10 10 10 10 9 10 15 16 16 16 16 16 16 16 16 16 16 16 16 13 Most Carried 24 | 4 8 10 24 22 22 24 10 10 10 10 10 10 10 10 10 10 10 16 16 16 16 16 15 13 16 16 16 16 16 16 16 Average Carried 13 | 2 5 8 15 21 20 22 9 9 9 9 9 10 10 9 9 9 9 14 12 16 15 16 12 11 15 15 15 15 15 15 13 Final Capacity 22 | 6 18 18 22 22 22 10 10 10 10 10 10 10 10 10 10 10 10 16 16 16 16 16 16 16 16 16 16 16 16 16 4 Final Carried 22 | 4 8 9 22 21 22 10 9 10 10 10 10 10 10 10 10 10 10 11 16 16 16 16 10 13 16 16 15 16 16 16 4 Class Distribution -------------------- 41% | Hacker-Mutant 17% | Hauler-Mutant 13% | Scavenger-Mutant 11% | Commander-Mutant 10% | Mutant 4% | Wizard-Mutant Dominant Class ---------------- Mutant | -10/Materials Mutant | -10/Mines Hauler-Mutant | -9/Materials Hauler-Mutant | -8/Materials Hauler-Mutant | -8/Garrison Hauler-Mutant | -8/Storage Mutant | -7/Factory Hacker-Mutant | -7/Garrison Commander-Mutant | -7/Factory Mutant | -7/Lower Caves Mutant | -7/Lower Caves Mutant | -7/Data Miner Mutant | -6/Proximity Caves Scavenger-Mutant | -6/Factory Scavenger-Mutant | -6/Waste Hacker-Mutant | -6/Factory Hacker-Mutant | -6/Garrison Hacker-Mutant | -5/Factory Commander-Mutant | -5/Upper Caves Scavenger-Mutant | -5/Upper Caves Scavenger-Mutant | -5/Zhirov Scavenger-Mutant | -4/Proximity Caves Hacker-Mutant | -4/Factory Hacker-Mutant | -4/Waste Hacker-Mutant | -4/Factory Hacker-Mutant | -4/Garrison Hacker-Mutant | -3/Research Bothacker-Mutant | -3/Testing Wizard-Mutant | -2/Research Wizard-Mutant | -2/Quarantine Hacker-Mutant | -1/Access Resources | -11 -10 -10 -9 -8 -8 -8 -7 -7 -7 -7 -7 -7 -6 -6 -6 -6 -6 -5 -5 -5 -5 -4 -4 -4 -4 -4 -3 -3 -2 -2 -1 ----------- Run | Scr Mat Min Mat Mat Gar Sto Fac Gar Fac Low Low Dat Pro Fac Was Fac Gar Fac Upp Upp Zhi Pro Fac Was Fac Gar Res Tes Res Qua Acc Matter Collected 9916 | 252 165 141 442 572 357 943 449 86 993 267 95 . 42 44 71 796 45 2206 120 85 . 50 . . 90 611 100 . 483 100 311 Remotely 132 | . . . . . . . . . . . . . . . . . . 132 . . . . . . . . . . . . . Salvage Created 14739 | 80 178 300 1021 1246 461 1565 507 96 952 364 101 . . 61 . 1862 230 3707 80 27 . . 14 . 9 574 196 130 495 150 333 Parts 833 | 1 13 30 74 79 26 91 26 2 60 18 6 . . 2 . 94 10 185 2 4 . . 1 . 5 25 12 4 29 10 24 Haulers Intercepted 9 | . . . 2 2 . 5 . . . . . . . . . . . . . . . . . . . . . . . . . Recyclers Shooed 4 | . . . 1 1 . . . . . . . . . . . . . 1 . . . . . . . . . 1 . . . Parts Field Recycled . | . . . . . . . . . . . . . . . . . . . . . . . . . . . . . . . . Retrieved Matter . | . . . . . . . . . . . . . . . . . . . . . . . . . . . . . . . . Parts Self-Destructed 66 | . . . . . . . . . . 16 6 . 8 . . . . . 5 22 . 9 . . . . . . . . . Prevented 8 | . . . . . . . . . . 1 . . . . . . . . 7 . . . . . . . . . . . . Kills | -11 -10 -10 -9 -8 -8 -8 -7 -7 -7 -7 -7 -7 -6 -6 -6 -6 -6 -5 -5 -5 -5 -4 -4 -4 -4 -4 -3 -3 -2 -2 -1 ------- Run | Scr Mat Min Mat Mat Gar Sto Fac Gar Fac Low Low Dat Pro Fac Was Fac Gar Fac Upp Upp Zhi Pro Fac Was Fac Gar Res Tes Res Qua Acc Combat Hostiles Destroyed 286 | . 6 11 23 23 9 27 9 2 16 10 5 . . 4 . 29 4 64 . 1 . . 1 . . 14 3 3 8 8 6 Melee 65 | . . . . 1 . 1 . . 2 . 1 . . 2 . 22 4 23 . . . . . . . . . . 5 . 4 Guns 125 | . 6 4 14 19 9 22 9 2 11 5 1 . . . . . . 16 . 1 . . . . . 6 . . . . . Cannons 3 | . . . 1 . . 1 . . . . . . . . . . . . . . . . . . . . . . . 1 . AOE 91 | . . 7 8 3 . 2 . . 3 4 3 . . 2 . 7 . 25 . . . . 1 . . 8 3 3 3 7 2 Classes Destroyed 23 | 1 3 1 5 1 . 2 . . 1 4 . . . . . . . 4 . . . . . . . . . . . 1 . Worker 19 | . . . 4 . . 2 1 . 2 . . . . . . 3 . 7 . . . . . . . . . . . . . Builder 4 | . . . . . . 1 . . . . . . . . . . . 1 . . . . . . 1 . . . . . 1 Tunneler 5 | . . 4 . . . . . . . . . . . . . . . . . . . . . . 1 . . . . . . Hauler 9 | . . . 2 2 . 5 . . . . . . . . . . . . . . . . . . . . . . . . . Recycler 13 | 1 . . 2 1 . . 1 . . . . . . . . 3 . 3 . . . . . . . . 1 1 . . . Minesweeper 3 | . . . . . . . . . . 1 . . . . . . . . 2 . . . . . . . . . . . . Mechanic 2 | . . . . . . . . . . 1 . . . . . . . 1 . . . . . . . . . . . . . Operator 8 | . 1 . 1 . . 1 1 . 1 . . . . . . 1 . 1 . . . . . . . . . . 1 . . Drone 3 | . . . . . . . . . . . . . . . . . . . . . . . . . . . . . . 3 . Watcher 19 | . . . 2 2 . . 1 . 2 . . . . . . 4 . 6 . . . . . . 1 . 1 . . . . Swarmer 95 | . 3 5 11 7 . 8 4 . . 4 4 . . 4 . 12 . 16 . 1 . . 1 . . 4 3 3 . 5 . Saboteur 1 | . . . . . . . . . . . . . . . . . . 1 . . . . . . . . . . . . . Grunt 92 | . 3 6 7 7 8 12 3 . 7 2 . . . . . 7 1 19 . . . . . . . 6 . . 4 . . Brawler 4 | . . . . . . 1 . . . . . . . . . . . 3 . . . . . . . . . . . . . Duelist 6 | . . . 1 1 1 . . . . . . . . . . . . 3 . . . . . . . . . . . . . Protector 1 | . . . . . . . . . . . . . . . . . . 1 . . . . . . . . . . . . . Sentry 39 | . . . 4 6 . 5 1 . 5 1 . . . . . 6 . 9 . . . . . . . . . . 1 . 1 Demolisher 1 | . . . . . . . . . . . . . . . . . . 1 . . . . . . . . . . . . . Specialist 1 | . . . . . . . . . . . . . . . . . . 1 . . . . . . . . . . . . . Hunter 15 | . . . . 2 . 1 1 2 . . 1 . . . . 1 2 1 . . . . . . . 2 . . . . 2 Programmer 25 | . . . . . . . . . 4 . . . . . . 3 1 10 . . . . . . . 1 . . 3 . 3 Behemoth 2 | . . . . . . . . . . 1 . . . . . . . . . . . . . . . 1 . . . . . Thief 2 | . . . . . . . . . . 2 . . . . . . . . . . . . . . . . . . . . . Best Kill Streak 8 | 1 3 8 7 6 4 4 5 1 6 4 4 . . 4 . 6 4 7 1 1 . . 1 . 3 4 4 3 7 4 3 Combat Bots Only 7 | . 3 4 4 5 4 3 4 1 5 4 4 . . 4 . 4 4 6 . 1 . . 1 . . 4 3 3 7 4 2 Max Kills in Single Turn 5 | 1 1 5 3 3 1 2 2 1 2 3 3 . . 2 . 3 1 5 1 1 . . 1 . 3 4 3 1 1 4 1 Gunslinging 1 | . . 1 . . . 1 1 . . . . . . . . . . . . . . . . . . . . . . . . Exploded 4 | . . 2 2 3 . 1 . . 2 3 3 . . 2 . 3 . 3 . . . . 1 . . 4 2 1 1 4 1 Melee 1 | . . . . 1 . 1 . . 1 . 1 . . 1 . 1 1 1 . . . . . . . . . . 1 . 1 Uniques/NPCs Destroyed 1 | . . . . . . 1 . . . . . . . . . . . . . . . . . . . . . . . . . 01-MTF (-8/Storage) Combat | -11 -10 -10 -9 -8 -8 -8 -7 -7 -7 -7 -7 -7 -6 -6 -6 -6 -6 -5 -5 -5 -5 -4 -4 -4 -4 -4 -3 -3 -2 -2 -1 -------- Run | Scr Mat Min Mat Mat Gar Sto Fac Gar Fac Low Low Dat Pro Fac Was Fac Gar Fac Upp Upp Zhi Pro Fac Was Fac Gar Res Tes Res Qua Acc Damage Taken 22322 | . 353 297 1222 1249 672 1029 1054 50 1237 204 114 . 173 126 . 1894 217 4815 20 146 . 909 173 . 67 586 145 230 224 1261 3855 Core 4001 | . 77 32 280 146 62 130 102 . 110 45 12 . 29 16 . 192 . 563 . . . 102 35 . 25 110 24 61 76 213 1559 Absorbed by Shields 681 | . . . . . 50 13 . . . . . . . . . 20 205 368 . . . . . . . 25 . . . . . Core Remaining (%) 64 | 100 . 56 30 . . 38 . . . . . . 57 . . . 75 . . . . 33 . . . 85 . 93 . 80 . Volleys Fired 739 | 2 25 29 92 62 22 99 46 7 76 30 5 . . 1 . 8 . 118 27 11 . 4 . . 6 41 2 7 4 8 7 Largest 2 | 2 2 2 2 2 2 2 2 2 2 2 2 . . 1 . 1 . 2 1 1 . 1 . . 1 1 1 1 1 1 1 Hottest 100 | 40 40 100 100 80 96 75 50 50 50 50 50 . . 39 . 43 . 70 65 35 . 35 . . 35 80 80 80 80 94 80 Shots Fired 1240 | 4 50 40 167 122 43 177 90 12 145 57 9 . . 1 . 8 . 198 27 11 . 4 . . 6 41 2 7 4 8 7 Gun 1090 | 4 50 22 149 120 42 158 90 12 140 57 8 . . . . . . 166 27 11 . 4 . . 6 24 . . . . . Cannon 3 | . . . . . 1 . . . . . . . . . . . . . . . . . . . . . . . . 2 . Launcher 79 | . . 7 8 2 . . . . 2 . 1 . . 1 . 3 . 21 . . . . . . . 16 2 3 4 3 6 Special 68 | . . 11 10 . . 19 . . 3 . . . . . . 5 . 11 . . . . . . . 1 . 4 . 3 1 Kinetic 825 | 4 50 11 28 36 42 147 90 10 139 56 8 . . . . . . 160 . 11 . 4 . . 6 23 . . . . . Thermal 67 | . . 22 24 . 1 19 . . . . . . . . . . . . . . . . . . . . . . . 1 . Explosive 79 | . . 7 8 2 . . . . 2 . 1 . . 1 . 3 . 21 . . . . . . . 16 2 3 4 3 6 Electromagnetic 241 | . . . 107 84 . 11 . 2 1 1 . . . . . . . 6 27 . . . . . . 1 . . . 1 . Robot Hit Streak 24 | 3 10 7 20 10 13 24 12 10 12 11 2 . . . . 1 . 11 5 3 . 2 . . . 10 . 3 . 4 11 Robot Miss Streak 7 | . 3 1 7 7 6 7 5 1 4 3 4 . . . . 4 . 4 5 3 . 2 . . . 2 . 1 . 1 . Penetration Max 1 | . . . . . . . . . . . . . . . . . . 1 . 1 . . . . . 1 . . . . . Secondary Targets 15 | . . 1 . 6 1 3 1 . 1 . . . . . . . . 2 . . . . . . . . . . . . . Max Gunslinging Chain 1 | . . 1 . 1 1 1 1 . 1 . . . . . . . . 1 . . . . . . . . . . . . . Shots Hit Robots 1076 | 3 38 20 92 95 36 146 56 11 104 40 6 . 1 2 . 91 15 215 16 6 . 2 . . . 20 2 5 17 8 29 Core Hits 710 | 1 11 21 48 79 45 110 22 4 38 18 6 . . 5 . 51 5 150 6 3 . . 1 . 3 27 5 6 16 9 20 Critical Hits 67 | . . . 1 . . 3 . . 2 1 . . . 1 . 2 2 43 . 2 . . . . . 8 . . 2 . . Critical Kills 30 | . . . 1 . . 1 . . 1 . . . . 1 . 1 . 17 . 1 . . . . . 5 . . 2 . . Critical Parts Destroyed 33 | . . . . . . . . . 1 1 . . . . . 1 2 24 . 1 . . . . . 3 . . . . . Melee Attacks 689 | . . . . . . 2 14 . 49 . 16 . 7 4 . 183 28 176 . . . 26 . . 14 1 5 10 59 46 49 Impact . | . . . . . . . . . . . . . . . . . . . . . . . . . . . . . . . . Slashing 552 | . . . . . . . 14 . 40 . 16 . 7 4 . 183 28 79 . . . . . . 14 1 5 10 59 46 46 Piercing 124 | . . . . . . . . . . . . . . . . . . 95 . . . 26 . . . . . . . . 3 Sneak Attacks 41 | . . . . . . 1 4 . 8 . . . 1 . . 15 . 10 . . . . . . . . . 1 1 . . Combat Hostiles 15 | . . . . . . . . . 4 . . . 1 . . 7 . 2 . . . . . . . . . . 1 . . Follow-up Attacks 45 | . . . . . . . . . . . . . . . . 13 4 20 . . . . . . . . . . 4 . 4 Damage Inflicted 39396 | 44 417 692 2302 1666 812 2467 1573 197 2901 1163 535 . 162 363 . 5628 569 9528 218 72 . 18 118 . 370 1678 581 498 1914 1058 1852 Guns 11134 | 44 417 176 1191 1277 812 2326 931 197 1578 661 52 . . . . . . 1032 191 72 . 18 . . . 159 . . . . . Cannons 34 | . . . . . . . . . . . . . . . . . . . . . . . . . . . . . . 34 . Explosions 13625 | . . 516 996 385 . 70 . . 337 502 311 . . 234 . 662 . 4253 27 . . . 118 . 370 1519 475 392 817 849 792 Melee 14413 | . . . . . . . 642 . 986 . 172 . 162 129 . 4966 569 4243 . . . . . . . . 106 106 1097 175 1060 Ramming 16 | . . . . 4 . 12 . . . . . . . . . . . . . . . . . . . . . . . . . Kinetic 8561 | 44 417 82 255 477 812 1945 931 104 1578 628 52 . . . . . . 997 . 72 . 18 . . . 149 . . . . . Thermal 1615 | . . 94 278 65 . 59 . . 38 . . . . . . . . 1054 27 . . . . . . . . . . . . Explosive 11763 | . . 516 938 320 . 70 . . 299 . 311 . . 234 . 662 . 3199 . . . . . . 370 1519 475 392 817 849 792 Electromagnetic 3028 | . . . 831 800 . 381 . 93 . 535 . . . . . . . 35 191 . . . 118 . . 10 . . . 34 . Impact . | . . . . . . . . . . . . . . . . . . . . . . . . . . . . . . . . Slashing 12330 | . . . . . . . 642 . 986 . 172 . 162 129 . 4966 569 2160 . . . . . . . . 106 106 1097 175 1060 Piercing 2083 | . . . . . . . . . . . . . . . . . . 2083 . . . . . . . . . . . . . Highest Corruption 8 | . 2 2 . 1 . 4 . . 5 5 5 5 5 . . 6 1 8 1 1 . 2 . 6 6 1 1 . 1 2 7 Average Corruption 3 | . 2 2 . 1 . 4 . . 4 5 5 5 5 . . 2 1 3 1 1 . 1 . 6 3 1 1 . 1 1 4 Corruption Purged 29 | . . . . 1 . . . . . . . . . . . 7 . 12 1 1 . . . . 6 . 1 . . . . Effects 189 | . 1 4 . 6 . 7 . . 68 16 11 . 7 . . 14 1 34 . 2 . 1 . 3 4 . . . . 3 7 Message Errors 52 | . . 3 . 2 . . . . 14 1 2 . 3 . . 6 1 11 . 1 . . . 1 3 . . . . 2 2 Matter Fused 38 | . . . . . . 2 . . 12 5 3 . 2 . . 4 . 5 . . . . . 1 1 . . . . . 3 Heat Flow Errors 22 | . 1 . . . . 2 . . 9 3 2 . . . . . . 4 . . . . . . . . . . . . 1 Energy Discharges 25 | . . . . 1 . 1 . . 13 1 1 . . . . 2 . 3 . 1 . . . 1 . . . . . . 1 Parts Rejected 1 | . . . . . . . . . . . 1 . . . . . . . . . . . . . . . . . . . . Data Loss (minor) 16 | . . . . 3 . 1 . . 5 1 . . . . . 1 . 4 . . . 1 . . . . . . . . . Data Loss (major) 3 | . . . . . . . . . 1 . . . . . . . . 2 . . . . . . . . . . . . . Misfires 4 | . . . . . . . . . 3 1 . . . . . . . . . . . . . . . . . . . . . Targeting Errors 24 | . . 1 . . . 1 . . 10 1 2 . 2 . . 1 . 5 . . . . . . . . . . . 1 . Weapon Failures 4 | . . . . . . . . . 1 3 . . . . . . . . . . . . . . . . . . . . . Overload Shots . | . . . . . . . . . . . . . . . . . . . . . . . . . . . . . . . . Overflow Damage 2546 | . . 29 15 22 . 21 337 . 372 35 . . 72 13 . 603 42 525 . . . . 5 . 104 . . 28 120 112 91 Projectiles . | . . . . . . . . . . . . . . . . . . . . . . . . . . . . . . . . Explosions 818 | . . 29 15 22 . 21 . . . 35 . . . 13 . 37 . 315 . . . . 5 . 104 . . 28 80 80 34 Melee 1728 | . . . . . . . 337 . 372 . . . 72 . . 566 42 210 . . . . . . . . . . 40 32 57 Knockbacks . | . . . . . . . . . . . . . . . . . . . . . . . . . . . . . . . . Impact . | . . . . . . . . . . . . . . . . . . . . . . . . . . . . . . . . Kinetic . | . . . . . . . . . . . . . . . . . . . . . . . . . . . . . . . . Secondary . | . . . . . . . . . . . . . . . . . . . . . . . . . . . . . . . . Self-Inflicted Damage 516 | . . 62 98 . . . . . . . . . . . . 14 . 92 21 . . . . . . . . . . . 229 Shots 15 | . . 2 3 . . . . . . . . . . . . 1 . 2 1 . . . . . . . . . . . 6 Rammed 2 | . . . . 1 . 1 . . . . . . . . . . . . . . . . . . . . . . . . . Targets Rammed 2 | . . . . 1 . 1 . . . . . . . . . . . . . . . . . . . . . . . . . Kicked . | . . . . . . . . . . . . . . . . . . . . . . . . . . . . . . . . Crushed . | . . . . . . . . . . . . . . . . . . . . . . . . . . . . . . . . Highest Temperature 331 | . 272 76 108 38 . 265 . 2 331 228 184 . . . . 20 . 264 17 . . . . . . 5 2 3 4 . 222 Average Temperature 52 | . 87 32 32 14 . 74 . 2 103 106 78 . . . . 9 . 59 9 . . . . . . 4 2 2 4 . 90 Received Heat Transfer 4333 | . 153 90 237 414 363 336 210 . 366 51 . . 63 . . 473 32 778 . 9 . 177 30 . . 53 . 39 27 99 333 Siege Activations . | . . . . . . . . . . . . . . . . . . . . . . . . . . . . . . . . Robots Corrupted 4 | . . . 1 . . 1 . . . 1 . . . . . . . . 1 . . . . . . . . . . . . Combat Hostiles 2 | . . . . . . 1 . . . 1 . . . . . . . . . . . . . . . . . . . . . Parts Fried 22 | . . . 3 5 . 4 . 1 2 3 . . . . . 1 . . 3 . . . . . . . . . . . . Impact Corruptions . | . . . . . . . . . . . . . . . . . . . . . . . . . . . . . . . . Robots Melted . | . . . . . . . . . . . . . . . . . . . . . . . . . . . . . . . . Combat Hostiles . | . . . . . . . . . . . . . . . . . . . . . . . . . . . . . . . . Parts Melted 6 | . . . 2 . . . . . . 3 . . . . . . . 1 . . . . . . . . . . . . . Heat Transferred 2053 | . . 200 659 50 . 444 . . 50 . . . . . . . . 600 50 . . . . . . . . . . . . Parts Sabotaged 4 | . . . . . . . . . . . . . . . . . . 4 . . . . . . . . . . . . . Parts Stolen . | . . . . . . . . . . . . . . . . . . . . . . . . . . . . . . . . Parts Stripped . | . . . . . . . . . . . . . . . . . . . . . . . . . . . . . . . . Power Chain Reactions 3 | . . . 1 1 . . . . . . . . . . . . . . 1 . . . . . . . . . . . . Missiles Intercepted . | . . . . . . . . . . . . . . . . . . . . . . . . . . . . . . . . Alert | -11 -10 -10 -9 -8 -8 -8 -7 -7 -7 -7 -7 -7 -6 -6 -6 -6 -6 -5 -5 -5 -5 -4 -4 -4 -4 -4 -3 -3 -2 -2 -1 ------- Run | Scr Mat Min Mat Mat Gar Sto Fac Gar Fac Low Low Dat Pro Fac Was Fac Gar Fac Upp Upp Zhi Pro Fac Was Fac Gar Res Tes Res Qua Acc Peak Influence 1557 | 5 177 245 397 497 344 620 493 225 1147 . . . . 154 53 628 632 1557 . . . . 141 64 380 778 656 450 565 354 246 Average Influence 394 | 2 49 106 226 338 221 343 325 188 452 . . . . 121 53 241 567 690 . . . . 48 59 136 501 599 273 317 129 161 Maximum Alert Level 4 | . . 1 1 2 1 2 2 1 4 . . . . . . 2 2 4 . . . . . . 1 3 2 2 2 1 1 Low Security (%) 26 | 100 100 86 45 8 46 12 1 69 18 . . . . 100 100 40 . . . . . . 100 100 84 . . 31 7 78 80 Level 1 35 | . . 13 54 63 53 45 86 30 26 . . . . . . 48 . 23 . . . . . . 15 29 . 51 80 21 19 Level 2 26 | . . . . 27 . 41 11 . 38 . . . . . . 11 100 39 . . . . . . . 64 100 17 11 . . Level 3 6 | . . . . . . . . . 13 . . . . . . . . 19 . . . . . . . 6 . . . . . Level 4 5 | . . . . . . . . . 4 . . . . . . . . 17 . . . . . . . . . . . . . Level 5 . | . . . . . . . . . . . . . . . . . . . . . . . . . . . . . . . . High Security . | . . . . . . . . . . . . . . . . . . . . . . . . . . . . . . . . Max Security . | . . . . . . . . . . . . . . . . . . . . . . . . . . . . . . . . Squads Dispatched 80 | . . . 5 2 . 7 5 . 12 . . . . . . 11 . 20 . . . . . . 5 . . 2 1 7 3 Investigation 23 | . . . 1 2 . 1 3 . 2 . . . . . . 5 . 3 . . . . . . 1 . . 2 . 2 1 Extermination 19 | . . . . . . . . . 3 . . . . . . 4 . 6 . . . . . . 2 . . . 1 1 2 Reinforcement 24 | . . . 4 . . 4 1 . 3 . . . . . . 2 . 6 . . . . . . . . . . . 4 . Assault 8 | . . . . . . 1 . . 2 . . . . . . . . 5 . . . . . . . . . . . . . Garrison 6 | . . . . . . 1 1 . 2 . . . . . . . . . . . . . . . 2 . . . . . . Intercept . | . . . . . . . . . . . . . . . . . . . . . . . . . . . . . . . . Construction Impeded 6 | . . . . . . 1 . . 1 . . . . . . . . 4 . . . . . . . . . . . . . Haulers Reinforced 3 | . . . . . . . 1 . 1 . . . . . . . . 1 . . . . . . . . . . . . . Alert ID Control Effect 28 | . . . . . . . . . . . . . . . . . . 14 1 11 . 2 . . . . . . . . . Stealth | -11 -10 -10 -9 -8 -8 -8 -7 -7 -7 -7 -7 -7 -6 -6 -6 -6 -6 -5 -5 -5 -5 -4 -4 -4 -4 -4 -3 -3 -2 -2 -1 --------- Run | Scr Mat Min Mat Mat Gar Sto Fac Gar Fac Low Low Dat Pro Fac Was Fac Gar Fac Upp Upp Zhi Pro Fac Was Fac Gar Res Tes Res Qua Acc Distress Signals 15 | . . . 1 . . 1 2 . 1 . . . . . . 2 . 4 . . . . . . 2 . . . 1 . 1 Communications Jammed 186 | . . . . . . . . . . . . . . . . 31 . 22 . . . . . . . . . 21 22 28 62 Distress Signals 168 | . . . . . . . . . . . . . . . . 13 . 22 . . . . . . . . . 21 22 28 62 Times Spotted 708 | . 9 14 42 34 9 69 30 2 44 14 5 . 15 5 . 85 7 158 . 12 . 13 12 6 11 18 5 19 22 16 32 Peak Tracking Total 26 | . 4 4 5 5 4 4 5 1 5 4 4 . 8 4 . 7 4 9 . 4 . 6 7 6 4 7 4 8 6 7 26 Tactical Retreats 101 | . 1 2 4 3 . 13 1 1 4 2 . . 4 1 . 15 . 22 . 1 . 5 4 . 2 4 . 4 6 1 1 Traps | -11 -10 -10 -9 -8 -8 -8 -7 -7 -7 -7 -7 -7 -6 -6 -6 -6 -6 -5 -5 -5 -5 -4 -4 -4 -4 -4 -3 -3 -2 -2 -1 ------- Run | Scr Mat Min Mat Mat Gar Sto Fac Gar Fac Low Low Dat Pro Fac Was Fac Gar Fac Upp Upp Zhi Pro Fac Was Fac Gar Res Tes Res Qua Acc Traps Triggered 44 | . 1 . . 2 2 3 . 1 3 . . . . 1 . 11 4 4 . . . . 1 . 1 4 2 . . 4 . Indirectly . | . . . . . . . . . . . . . . . . . . . . . . . . . . . . . . . . Trap Hack Attempts 65 | . . . . 15 . 44 6 . . . . . . . . . . . . . . . . . . . . . . . . Triggered . | . . . . . . . . . . . . . . . . . . . . . . . . . . . . . . . . Disarmed 10 | . . . . . . . . . . . . . . . . . . 4 . . . . . . . . . 6 . . . Reprogrammed 58 | . 6 . . 11 . 9 1 . . . . . . . . 3 . 19 . . . . . . 9 . . . . . . Reused 39 | . . . . 5 . 5 1 . . 4 . . . . . 13 . 6 . . . . 3 . 2 . . . . . . Traps Extracted 3 | . . . . . . 3 . . . . . . . . . . . . . . . . . . . . . . . . . Installed 10 | . . . . . . 3 . . . 4 . . . . . . . . . . . . 3 . . . . . . . . Triggered 45 | . . . . 5 . 5 1 . . 4 . . . . . 13 . 6 4 2 . . 3 . 2 . . . . . . Machines | -11 -10 -10 -9 -8 -8 -8 -7 -7 -7 -7 -7 -7 -6 -6 -6 -6 -6 -5 -5 -5 -5 -4 -4 -4 -4 -4 -3 -3 -2 -2 -1 ---------- Run | Scr Mat Min Mat Mat Gar Sto Fac Gar Fac Low Low Dat Pro Fac Was Fac Gar Fac Upp Upp Zhi Pro Fac Was Fac Gar Res Tes Res Qua Acc Machines Disabled 44 | . . . 4 . 1 6 3 . 6 . . . . . . 1 1 10 . . . . . . 2 1 1 3 . 4 1 Max in Single Turn 4 | . . . 1 . 1 2 1 . 4 . . . . . . 1 1 3 . . . . . . 1 1 1 1 . 1 1 Garrison Access 11 | . . . . . . 1 . . 3 . . . . . . 3 . 4 . . . . . . . . . . . . . Garrison Relay 3 | . . . . . 1 . . . . . . . . . . . 1 . . . . . . . . 1 . . . . . Machines Sabotaged . | . . . . . . . . . . . . . . . . . . . . . . . . . . . . . . . . Garrisons Compromised . | . . . . . . . . . . . . . . . . . . . . . . . . . . . . . . . . Overloaded Fab Kills . | . . . . . . . . . . . . . . . . . . . . . . . . . . . . . . . . Fab Network Shutdowns 2 | . . . . . . . . . 1 . . . . . . 1 . . . . . . . . . . . . . . . Hacking | -11 -10 -10 -9 -8 -8 -8 -7 -7 -7 -7 -7 -7 -6 -6 -6 -6 -6 -5 -5 -5 -5 -4 -4 -4 -4 -4 -3 -3 -2 -2 -1 --------- Run | Scr Mat Min Mat Mat Gar Sto Fac Gar Fac Low Low Dat Pro Fac Was Fac Gar Fac Upp Upp Zhi Pro Fac Was Fac Gar Res Tes Res Qua Acc Machines Accessed 192 | . 6 . 7 11 . 11 9 . 33 . . 4 . 4 . 34 . 31 . . 4 . 2 . 10 . . 8 11 5 2 Terminals 99 | . 6 . 3 8 . 9 3 . 15 . . . . 1 . 16 . 13 . . . . 1 . 6 . . 6 7 4 1 Fabricators 20 | . . . . . . . 2 . 5 . . . . 1 . 3 . 4 . . . . 1 . 1 . . . 2 . 1 Repair Stations 23 | . . . 2 1 . 1 2 . 4 . . . . . . 6 . 4 . . . . . . 1 . . . 2 . . Recycling Units 15 | . . . 2 . . . . . 4 . . . . 2 . 4 . 3 . . . . . . . . . . . . . Scanalyzers 11 | . . . . 1 . . 1 . 2 . . . . . . 1 . 3 . . . . . . 1 . . 1 . 1 . Garrison Access 16 | . . . . 1 . 1 1 . 3 . . . . . . 4 . 4 . . . . . . 1 . . 1 . . . Total Hacks 716 | . 16 . 16 35 . 31 42 . 101 . . 29 . 8 . 126 . 149 . . 17 . 5 . 38 . . 25 45 26 7 Successful 406 | . 8 . 10 16 . 15 15 . 46 . . 29 . 2 . 85 . 83 . . 17 . 3 . 25 . . 15 24 11 2 Failed 309 | . 8 . 6 19 . 16 27 . 55 . . . . 6 . 41 . 66 . . . . 2 . 13 . . 10 21 14 5 Catastrophic 57 | . 2 . . 5 . 4 7 . 12 . . . . 1 . 8 . 10 . . . . 1 . 1 . . 2 3 . 1 Database Lockouts 1 | . . . . . . . . . . . . . . . . . . . . . . . . . . . . . . 1 . Manual 314 | . 12 . 6 23 . 23 25 . 26 . . . . 5 . 54 . 66 . . . . 4 . 14 . . 14 22 17 3 Terminals 352 | . 16 . 7 28 . 26 20 . 36 . . . . 3 . 55 . 65 . . . . 3 . 22 . . 19 28 22 2 Fabricators 82 | . . . . . . . 6 . 23 . . . . 1 . 10 . 20 . . . . 2 . 5 . . . 10 . 5 Repair Stations 122 | . . . 5 3 . 4 6 . 18 . . . . . . 35 . 39 . . . . . . 5 . . . 7 . . Recycling Units 37 | . . . 4 . . . . . 10 . . . . 4 . 8 . 11 . . . . . . . . . . . . . Scanalyzers 40 | . . . . 2 . . 4 . 7 . . . . . . 7 . 10 . . . . . . 3 . . 3 . 4 . Garrison Access 37 | . . . . 2 . 1 6 . 7 . . . . . . 11 . 4 . . . . . . 3 . . 3 . . . Terminal Hacks 136 | . 7 . 4 8 . 8 2 . 8 . . 29 . . . 12 . 14 . . 17 . . . 7 . . 6 9 5 . Record 16 | . . . . . . . . . . . . 11 . . . . . . . . 5 . . . . . . . . . . Part Schematic 16 | . . . . 1 . . . . . . . 7 . . . 1 . 1 . . 4 . . . 1 . . 1 . . . Robot Schematic 12 | . . . . 2 . . . . 2 . . 8 . . . . . . . . . . . . . . . . . . . Robot Analysis 14 | . 2 . 1 . . . . . 1 . . . . . . . . . . . 4 . . . 1 . . . 3 2 . Prototype ID Bank 12 | . 2 . 1 . . . . . 1 . . 3 . . . . . . . . 4 . . . . . . . 1 . . Open Door 1 | . . . . . . 1 . . . . . . . . . . . . . . . . . . . . . . . . . Level Access Points 1 | . . . . . . . . . . . . . . . . . . . . . . . . . . . . 1 . . . Branch Access Points 4 | . . . . . . . . . 1 . . . . . . 1 . 1 . . . . . . . . . . 1 . . Machine Index 1 | . . . . . . . . . . . . . . . . 1 . . . . . . . . . . . . . . . Terminal Index 1 | . . . . . . . . . . . . . . . . . . . . . . . . . 1 . . . . . . Fabricator Index 1 | . . . . . . . . . . . . . . . . . . . . . . . . . 1 . . . . . . Scanalyzer Index 1 | . . . . . . . . . . . . . . . . . . . . . . . . . 1 . . . . . . Unreport Threat 26 | . 2 . 1 2 . 4 2 . 1 . . . . . . 4 . 3 . . . . . . . . . 3 3 1 . Locate Traps 4 | . . . 1 . . 1 . . . . . . . . . . . 2 . . . . . . . . . . . . . Disarm Traps 2 | . . . . . . . . . . . . . . . . . . 1 . . . . . . . . . 1 . . . Reprogram Traps 11 | . 1 . . 2 . 1 . . . . . . . . . 1 . 4 . . . . . . 2 . . . . . . Recall Investigation 2 | . . . . . . . . . . . . . . . . 2 . . . . . . . . . . . . . . . Recall Extermination 1 | . . . . . . . . . . . . . . . . 1 . . . . . . . . . . . . . . . Recall Reinforcements 1 | . . . . . . . . . . . . . . . . 1 . . . . . . . . . . . . . . . Registered Prototypes 1 | . . . . . . . . . . . . . . . . . . . . . . . . . . . . . 1 . . Zone Layout 8 | . . . . 1 . 1 . . 2 . . . . . . . . 2 . . . . . . . . . . . 2 . Fabricator Hacks 36 | . . . . . . . 4 . 10 . . . . . . 5 . 9 . . . . 1 . 3 . . . 3 . 1 Load Schematic 18 | . . . . . . . 2 . 4 . . . . . . 3 . 4 . . . . 1 . 1 . . . 2 . 1 Build 18 | . . . . . . . 2 . 6 . . . . . . 2 . 5 . . . . . . 2 . . . 1 . . Repair Station Hacks 87 | . . . 3 2 . 2 3 . 8 . . . . . . 30 . 29 . . . . . . 4 . . . 6 . . Scan Component 46 | . . . 1 1 . 1 2 . 5 . . . . . . 16 . 15 . . . . . . 2 . . . 3 . . Repair 40 | . . . 1 1 . 1 1 . 3 . . . . . . 14 . 14 . . . . . . 2 . . . 3 . . Refit 1 | . . . 1 . . . . . . . . . . . . . . . . . . . . . . . . . . . . Recycling Unit Hacks 9 | . . . 1 . . . . . 2 . . . . . . 3 . 3 . . . . . . . . . . . . . Retrieve Components 9 | . . . 1 . . . . . 2 . . . . . . 3 . 3 . . . . . . . . . . . . . Scanalyzer 28 | . . . . 2 . . 2 . 6 . . . . . . 7 . 7 . . . . . . 1 . . 2 . 1 . Insert Component 16 | . . . . 1 . . 1 . 3 . . . . . . 3 . 5 . . . . . . 1 . . 1 . 1 . Analyze 12 | . . . . 1 . . 1 . 3 . . . . . . 4 . 2 . . . . . . . . . 1 . . . Garrison Access Hacks 17 | . . . . 1 . 1 1 . 3 . . . . . . 5 . 4 . . . . . . 1 . . 1 . . . Unlock Access 4 | . . . . 1 . . 1 . . . . . . . . 1 . . . . . . . . 1 . . . . . . Seal Access 11 | . . . . . . 1 . . 3 . . . . . . 3 . 4 . . . . . . . . . . . . . Coupler Status 2 | . . . . . . . . . . . . . . . . 1 . . . . . . . . . . . 1 . . . Unauthorized Hacks 93 | . 1 . 2 3 . 4 3 . 9 . . . . 2 . 23 . 17 . . . . 2 . 9 . . 6 6 5 1 Terminals 59 | . 1 . 1 3 . 4 2 . 3 . . . . 1 . 14 . 10 . . . . 2 . 6 . . 4 4 4 . Track 9 | . . . . . . 1 . . . . . . . . . 4 . 1 . . . . . . 2 . . . . 1 . Assimilate 6 | . . . . . . . . . 1 . . . . . . 1 . 1 . . . . . . . . . 1 2 . . Botnet 36 | . 1 . 1 1 . 2 2 . 2 . . . . 1 . 9 . 8 . . . . 1 . 2 . . 2 1 3 . Detonate 1 | . . . . . . . . . . . . . . . . . . . . . . . . . 1 . . . . . . Disrupt 4 | . . . . 1 . 1 . . . . . . . . . . . . . . . . . . . . . 1 1 . . Operators 3 | . . . . 1 . . . . . . . . . . . . . . . . . . 1 . 1 . . . . . . Fabricators 16 | . . . . . . . . . 3 . . . . 1 . 3 . 5 . . . . . . 1 . . . 2 . 1 Report 4 | . . . . . . . . . 1 . . . . 1 . 1 . 1 . . . . . . . . . . . . . Prioritize 4 | . . . . . . . . . 2 . . . . . . . . 1 . . . . . . . . . . 1 . . Siphon 8 | . . . . . . . . . . . . . . . . 2 . 3 . . . . . . 1 . . . 1 . 1 Repair Stations . | . . . . . . . . . . . . . . . . . . . . . . . . . . . . . . . . Recycling Units 8 | . . . 1 . . . . . 1 . . . . . . 4 . 2 . . . . . . . . . . . . . Mask 7 | . . . . . . . . . 1 . . . . . . 4 . 2 . . . . . . . . . . . . . Tunnel 1 | . . . 1 . . . . . . . . . . . . . . . . . . . . . . . . . . . . Scanalyzers 2 | . . . . . . . . . . . . . . . . . . . . . . . . . . . . 1 . 1 . Researchers 2 | . . . . . . . . . . . . . . . . . . . . . . . . . . . . 1 . 1 . Garrison Access 8 | . . . . . . . 1 . 2 . . . . . . 2 . . . . . . . . 2 . . 1 . . . Reprogram 7 | . . . . . . . 1 . 2 . . . . . . 2 . . . . . . . . 2 . . . . . . Eject 1 | . . . . . . . . . . . . . . . . . . . . . . . . . . . . 1 . . . Data Cores Recovered 3 | . 1 . . . . 1 . . . . . . . . . . . . . . . . . . . . . . 1 . . Used 1 | . . . . . . . . . . . . . . . . . . . . . . . . . . . . . 1 . . Hacking Detections 146 | . 5 . 5 11 . 9 8 . 29 . . . . 3 . 22 . 21 . . . . 1 . 10 . . 7 9 4 2 Full Trace Events 16 | . 1 . . 1 . 1 3 . . . . . . . . 4 . 3 . . . . . . . . . 1 . 1 1 Feedback Events 2 | . . . . 1 . . . . . . . . . . . 1 . . . . . . . . . . . . . . . Corruption 1 | . . . . 1 . . . . . . . . . . . . . . . . . . . . . . . . . . . Hackware Fried 1 | . . . . . . . . . . . . . . . . 1 . . . . . . . . . . . . . . . Feedback Blocked . | . . . . . . . . . . . . . . . . . . . . . . . . . . . . . . . . Robot Schematics Acquired 12 | . . . . 2 . . . . 2 . . 8 . . . . . . . . . . . . . . . . . . . Robots Built 16 | . . . . . . . . . 4 . . . . . . 3 . 9 . . . . . . . . . . . . . Matter 2117 | . . . . . . . . . 471 . . . . . . 556 . 1090 . . . . . . . . . . . . . Time 1146 | . . . . . . . . . 192 . . . . . . 253 . 701 . . . . . . . . . . . . . Total Robot Build Rating 78 | . . . . . . . . . 14 . . . . . . 18 . 46 . . . . . . . . . . . . . Part Schematics Acquired 26 | . . . . 2 . . 1 . 3 . . 7 . . . 4 . 2 . . 4 . . . 1 . . 2 . . . Parts Built 6 | . . . . . . . 2 . 1 . . . . . . . . . . . . . . . 2 . . . 1 . . Matter 1471 | . . . . . . . 464 . 318 . . . . . . . . . . . . . . . 476 . . . 213 . . Time 570 | . . . . . . . 242 . 84 . . . . . . . . . . . . . . . 168 . . . 76 . . Total Part Build Rating 32 | . . . . . . . 9 . 6 . . . . . . . . . . . . . . . 12 . . . 5 . . Parts Repaired 40 | . . . 1 1 . 1 1 . 3 . . . . . . 14 . 14 . . . . . . 2 . . . 3 . . Time 2422 | . . . 26 26 . 108 38 . 189 . . . . . . 956 . 895 . . . . . . 70 . . . 114 . . Parts Recycled . | . . . . . . . . . . . . . . . . . . . . . . . . . . . . . . . . Recycled Matter . | . . . . . . . . . . . . . . . . . . . . . . . . . . . . . . . . Retrieved Matter . | . . . . . . . . . . . . . . . . . . . . . . . . . . . . . . . . Retrieved Components 14 | . . . . . . . . . 3 . . . . . . 5 . 6 . . . . . . . . . . . . . Parts Scanalyzed 13 | . . . . 1 . . 1 . 3 . . . . . . 3 . 4 . . . . . . 1 . . . . . . Part Schematics Acquired 10 | . . . . 1 . . 1 . 3 . . . . . . 3 . 1 . . . . . . . . . 1 . . . Parts Damaged . | . . . . . . . . . . . . . . . . . . . . . . . . . . . . . . . . Bothacking | -11 -10 -10 -9 -8 -8 -8 -7 -7 -7 -7 -7 -7 -6 -6 -6 -6 -6 -5 -5 -5 -5 -4 -4 -4 -4 -4 -3 -3 -2 -2 -1 ------------ Run | Scr Mat Min Mat Mat Gar Sto Fac Gar Fac Low Low Dat Pro Fac Was Fac Gar Fac Upp Upp Zhi Pro Fac Was Fac Gar Res Tes Res Qua Acc Used RIF Installer 4 | . . . . . 1 . . 1 . . . . . . . . 1 . . . . . . . . 1 . . . . . Robot Detection 1 | . . . . . . . . . . . . . . . . . . . . . . . . . . 1 . . . . . Patrol Navigation 1 | . . . . . . . . 1 . . . . . . . . . . . . . . . . . . . . . . . Alert ID Control 1 | . . . . . . . . . . . . . . . . . 1 . . . . . . . . . . . . . . Robots Hacked 23 | . . . . . . 1 . . 5 . . . . . . 2 . 11 . . . . . . . . . 2 . 1 1 Non-combat 11 | . . . . . . . . . 3 . . . . . . . . 6 . . . . . . . . . 1 . . 1 Combat 12 | . . . . . . 1 . . 2 . . . . . . 2 . 5 . . . . . . . . . 1 . 1 . Robot Hacks Applied 25 | . . . . . . 1 . . 5 . . . . . . 2 . 12 . . . . . . . . . 2 . 2 1 parse_system 1 | . . . . . . 1 . . . . . . . . . . . . . . . . . . . . . . . . . no_distress 1 | . . . . . . . . . . . . . . . . . . 1 . . . . . . . . . . . . . deconstruct_machine 1 | . . . . . . . . . . . . . . . . . . 1 . . . . . . . . . . . . . drop_inventory 1 | . . . . . . . . . . . . . . . . . . 1 . . . . . . . . . . . . . purge_threat 2 | . . . . . . . . . . . . . . . . . . 2 . . . . . . . . . . . . . map_route 2 | . . . . . . . . . 1 . . . . . . . . . . . . . . . . . . . . . 1 disable_scanner 1 | . . . . . . . . . . . . . . . . . . . . . . . . . . . . . . 1 . locate_prototypes 2 | . . . . . . . . . . . . . . . . . . . . . . . . . . . . 1 . 1 . amplify_resonance 1 | . . . . . . . . . . . . . . . . . . 1 . . . . . . . . . . . . . reboot_system 3 | . . . . . . . . . 1 . . . . . . 1 . 1 . . . . . . . . . . . . . go_dormant 2 | . . . . . . . . . . . . . . . . . . 2 . . . . . . . . . . . . . streamctrl_low 1 | . . . . . . . . . . . . . . . . . . . . . . . . . . . . 1 . . . formatsys_low 4 | . . . . . . . . . 2 . . . . . . . . 2 . . . . . . . . . . . . . formatsys_high 3 | . . . . . . . . . 1 . . . . . . 1 . 1 . . . . . . . . . . . . . Relay Couplers Released 23 | . . . . . 4 . . . . . . . . . . 7 3 2 . . . . . . . 3 . 4 . . . Ejected 4 | . . . . . . . . . . . . . . . . . . . . . . . . . . . . 4 . . . Machine Destruction 15 | . . . . . 4 . . . . . . . . . . 3 3 2 . . . . . . . 3 . . . . . Programmers 4 | . . . . . . . . . . . . . . . . 4 . . . . . . . . . . . . . . . Attached 10 | . . . . . . 1 . . 2 . . . . . . 1 . 4 . . . . . . . . . 1 . 1 . Robots Rewired 4 | . . . . . . 2 1 . . . . . . . . . . . . . . . . . . 1 . . . . . Allies Hacked 7 | . . . . . . . . . 2 . . . . . . . 2 2 . . . . . . . . . . 1 . . Hacks Repelled 3 | . . . . . . . . . 1 . . . . . . . . 2 . . . . . . . . . . . . . Allies | -11 -10 -10 -9 -8 -8 -8 -7 -7 -7 -7 -7 -7 -6 -6 -6 -6 -6 -5 -5 -5 -5 -4 -4 -4 -4 -4 -3 -3 -2 -2 -1 -------- Run | Scr Mat Min Mat Mat Gar Sto Fac Gar Fac Low Low Dat Pro Fac Was Fac Gar Fac Upp Upp Zhi Pro Fac Was Fac Gar Res Tes Res Qua Acc Total Allies 52 | . . . . . . 4 2 . 12 . . . 1 . . 6 2 14 . . . . . . 3 1 . 2 2 3 . Largest Group 9 | . . . . . . 2 1 1 7 3 . . 1 . . 2 4 9 7 7 3 3 . . 2 2 . 1 2 3 . Highest-Rated Group 351 | . . . . . . 115 32 32 171 54 . . 94 . . 114 142 351 269 269 118 118 . . 108 95 . 32 88 138 . Highest-Rated Ally 99 | . . . . . . 99 32 32 38 21 . . 94 . . 60 60 60 54 54 41 41 . . 54 49 . 32 44 46 . Total Orders 54 | . . . . . . . 1 . 8 4 . . . . . 1 . 28 7 1 2 1 . . . . . 1 . . . STAY 22 | . . . . . . . 1 . 2 2 . . . . . 1 . 12 3 . 1 . . . . . . . . . . ROAM 19 | . . . . . . . . . 3 2 . . . . . . . 10 3 . 1 . . . . . . . . . . GUARD 12 | . . . . . . . . . 3 . . . . . . . . 6 1 1 . . . . . . . 1 . . . COLLECT 1 | . . . . . . . . . . . . . . . . . . . . . . 1 . . . . . . . . . Ally Attacks 353 | . . . . . . 60 21 2 82 9 . . 19 . . 21 14 44 3 35 . 13 . . 12 7 . . . 11 . Total Damage 10768 | . . . . . . 1711 721 85 2060 179 . . 655 . . 458 452 1766 31 1106 . 641 . . 569 138 . . . 196 . Kills 92 | . . . . . . 21 5 . 21 1 . . 4 . . 2 1 16 1 11 . 2 . . 5 . . . . 2 . Allies Corrupted 3 | . . . . . . . . . . . . . . . . . . . . 2 . 1 . . . . . . . . . Allies Melted 2 | . . . . . . . . . 1 . . . . . . . . 1 . . . . . . . . . . . . . Intel | -11 -10 -10 -9 -8 -8 -8 -7 -7 -7 -7 -7 -7 -6 -6 -6 -6 -6 -5 -5 -5 -5 -4 -4 -4 -4 -4 -3 -3 -2 -2 -1 ------- Run | Scr Mat Min Mat Mat Gar Sto Fac Gar Fac Low Low Dat Pro Fac Was Fac Gar Fac Upp Upp Zhi Pro Fac Was Fac Gar Res Tes Res Qua Acc Robot Analysis Total 14 | . 2 . 1 . . . . . 1 . . . . . . . . . . . 4 . . . 1 . . . 3 2 . Derelict Logs Recovered 7 | . . 1 . . . . . . . 1 1 . . . . . . . 1 2 . 1 . . . . . . . . . Drone Launches 4 | . . . . . . . . . . . . . . . . . . . . . . 4 . . . . . . . . . Drone Recoveries 2 | . . . . . . . . . . . . . . . . . . . . . . 2 . . . . . . . . . Exploration | -11 -10 -10 -9 -8 -8 -8 -7 -7 -7 -7 -7 -7 -6 -6 -6 -6 -6 -5 -5 -5 -5 -4 -4 -4 -4 -4 -3 -3 -2 -2 -1 ------------- Run | Scr Mat Min Mat Mat Gar Sto Fac Gar Fac Low Low Dat Pro Fac Was Fac Gar Fac Upp Upp Zhi Pro Fac Was Fac Gar Res Tes Res Qua Acc Turns Passed 26687 | 66 406 378 1185 1224 355 2307 813 156 3631 467 269 33 167 98 177 3462 216 5905 549 848 147 338 243 107 754 381 163 263 564 367 648 Spaces Moved 28735 | 48 246 202 513 660 161 1041 1090 199 5019 799 445 78 308 177 426 4240 216 6619 683 1158 164 316 340 166 649 486 267 415 742 388 474 Core 120 | 1 . . . . . . . . . . . . . . . . . . . . . . . . . . . . . . 119 Treads 525 | . 2 . 165 2 47 294 . . . . . . . . . . . . . . . . . . . . . . . . 15 Legs . | . . . . . . . . . . . . . . . . . . . . . . . . . . . . . . . . Wheels 2329 | 47 244 202 348 658 114 716 . . . . . . . . . . . . . . . . . . . . . . . . . Hover 25761 | . . . . . . 31 1090 199 5019 799 445 78 308 177 426 4240 216 6619 683 1158 164 316 340 166 649 486 267 415 742 388 340 Flight . | . . . . . . . . . . . . . . . . . . . . . . . . . . . . . . . . Fastest Speed 22 | 50 100 130 130 130 140 42 42 42 30 30 42 42 42 38 38 22 38 30 48 48 48 40 48 36 40 40 40 40 34 42 50 Average Speed 55 | 98 123 130 150 138 155 146 42 42 48 41 42 42 42 38 38 39 38 45 48 53 84 75 51 46 40 40 40 41 36 46 103 Slowest Speed 200 | 100 160 130 200 180 180 165 42 42 95 42 42 42 42 38 38 100 38 108 108 105 105 108 52 48 48 40 40 102 105 106 200 Overloaded Moves 255 | . . . . . . . . . 26 29 . . . . . 59 . 30 . . . 90 . 21 . . . . . . . Propulsion Burnouts . | . . . . . . . . . . . . . . . . . . . . . . . . . . . . . . . . Robots Hopped . | . . . . . . . . . . . . . . . . . . . . . . . . . . . . . . . . Cave-ins Triggered . | . . . . . . . . . . . . . . . . . . . . . . . . . . . . . . . . Teleports 1 | . . . . . . . . . . . . . . . . . . . . . . . . . . . . . . . 1 Exploration Rate (%) 53 | 4 51 49 57 68 36 96 31 28 79 66 69 69 55 5 96 84 36 76 69 94 60 69 9 99 16 62 6 73 20 52 18 Regions Visited 31 Branch Regions 12 Pre-discovered Areas 7 | . . 1 1 . . . . . . . . 1 . . . . . . . 1 3 . . . . . . . . . . Known Exits Taken 12 | . . . . 1 . . 1 . 1 1 . . . . . 1 . 1 1 . . . . . 1 . 1 1 1 1 . Unknown Exits Taken 11 | 1 1 1 1 . . 1 . . . . 1 1 1 . . . . . . 1 1 1 . . . . . . . . . Scrap Searched 17 | . . . . . . . . . . . 10 . 1 . . . . . 2 4 . . . . . . . . . . . Spaces Dug 293 | . . . 10 . . . 1 . 10 . 21 . 4 14 . 62 1 71 . . . 24 . . 14 . 3 5 28 10 15 Terrain Destroyed 1131 | . . 50 48 30 . 18 1 . 55 34 21 . 4 14 . 74 1 250 3 . . 24 8 . 85 154 27 54 81 52 43 Melee 220 | . . . . . . . 1 . 10 . 11 . 4 . . 51 1 43 . . . 24 . . 14 . 3 5 28 10 15 Projectile 3 | . . 2 1 . . . . . . . . . . . . . . . . . . . . . . . . . . . . AOE 908 | . . 48 47 30 . 18 . . 45 34 10 . . 14 . 23 . 207 3 . . . 8 . 71 154 24 49 53 42 28 Actions | -11 -10 -10 -9 -8 -8 -8 -7 -7 -7 -7 -7 -7 -6 -6 -6 -6 -6 -5 -5 -5 -5 -4 -4 -4 -4 -4 -3 -3 -2 -2 -1 --------- Run | Scr Mat Min Mat Mat Gar Sto Fac Gar Fac Low Low Dat Pro Fac Was Fac Gar Fac Upp Upp Zhi Pro Fac Was Fac Gar Res Tes Res Qua Acc Total 37360 | 59 298 253 747 856 222 1656 1364 260 6069 899 488 77 331 200 443 5782 316 9065 867 1374 174 371 411 195 1110 624 315 490 955 503 586 Wait 6086 | . 17 10 69 37 19 347 163 37 836 51 15 . 12 . . 1232 54 2022 138 201 . 26 57 24 417 68 29 22 125 22 36 Move 28705 | 47 245 201 512 659 160 1040 1089 198 5018 798 444 77 307 177 425 4239 215 6618 682 1157 163 315 340 165 648 485 265 414 741 387 474 Hop . | . . . . . . . . . . . . . . . . . . . . . . . . . . . . . . . . Pick Up 214 | 4 4 4 27 23 5 24 2 1 8 6 2 . . 3 6 22 3 24 5 1 3 . 2 4 6 1 3 9 6 3 3 Fast Attach 144 | 6 1 . 9 4 . 3 8 . 5 . 1 . 2 4 2 27 1 31 3 1 3 . 1 . 7 . 1 6 7 1 10 Attach 68 | . 1 3 5 7 3 3 1 . 3 1 1 . . 4 . 6 1 9 . . . . 4 2 . . 3 . 2 1 8 Detach 34 | . 1 . 5 1 . 1 1 . 3 1 . . 1 2 . 4 . 6 1 . . . . . 4 . . 1 1 1 . Swap 292 | . 3 6 12 21 4 25 10 4 39 2 2 . . 1 1 39 1 61 8 2 . . . . 3 7 3 8 13 15 2 Drop 233 | . 1 . 16 26 1 40 5 . 16 6 2 . 2 4 9 29 2 21 3 1 5 . 4 . 5 1 3 13 8 5 5 Fire 739 | 2 25 29 92 62 22 99 46 7 76 30 5 . . 1 . 8 . 118 27 11 . 4 . . 6 41 2 7 4 8 7 Melee 603 | . . . . . . 2 14 . 49 . 16 . 7 4 . 156 21 150 . . . 26 . . 14 1 5 10 48 39 41 Ram . | . . . . . . . . . . . . . . . . . . . . . . . . . . . . . . . . Kick . | . . . . . . . . . . . . . . . . . . . . . . . . . . . . . . . . Crush 2 | . . . . 1 . 1 . . . . . . . . . . . . . . . . . . . . . . . . . Escape Stasis 124 | . . . . . 8 12 . 13 13 . . . . . . 19 18 . . . . . . . . 19 1 . . 21 . Rewire 41 | . . . . . . 12 19 . 3 . . . . . . 1 . 5 . . . . . . . 1 . . . . . Trap 75 | . . . . 15 . 47 6 . . 4 . . . . . . . . . . . . 3 . . . . . . . . Miscellaneous . | . . . . . . . . . . . . . . . . . . . . . . . . . . . . . . . . Route ------- -11/Scrapyard -10/Materials (discovered 2 exits: *Mat / [*Min]) -10/Mines -9/Materials (discovered 3 exits: *Mat x2 / [*Min]) -8/Materials (discovered 5 exits: *Fac x3 / *Sto / Gar) -8/Garrison -8/Storage -7/Factory (discovered 3 exits: *Fac x2 / Gar) -7/Garrison -7/Factory (discovered 6 exits: *Fac x4 / *Low x2) -7/Lower Caves -7/Lower Caves (discovered 2 exits: *Fac / *Dat) -7/Data Miner -6/Proximity Caves -6/Factory (discovered 2 exits: Fac x2) -6/Waste -6/Factory (discovered 7 exits: *Fac x4 / *Low x2 / Gar) -6/Garrison -5/Factory (discovered 5 exits: *Fac x3 / *Upp x2) -5/Upper Caves -5/Upper Caves -5/Zhirov -4/Proximity Caves -4/Factory -4/Waste -4/Factory -4/Garrison (discovered 3 exits: [*Res x3]) -3/Research -3/Testing -2/Research (discovered 3 exits: *Acc / *Qua x2) -2/Quarantine -1/Access History --------- Turn | Location | Event 23 | -11/Scrapyard | Discovered new exit (range 16) 67 | -11/Scrapyard | Entered Materials 175 | -10/Materials | Discovered new exit (range 3) 303 | -10/Materials | Build established: Mutant 450 | -10/Materials | Discovered new exit (range 7) 473 | -10/Materials | Entered Mines 536 | -10/Mines | Excavation squad dispatched 536 | -10/Mines | A large section of the Mines collapsed 740 | -10/Mines | Received a Rocket Launcher from a helpful Derelict 786 | -10/Mines | Excavation squad dispatched 794 | -10/Mines | Discovered new exit (range 13) 851 | -10/Mines | Entered Materials 851 | -9/Materials | Evolved 2 slots: Utility x2 1082 | -9/Materials | Core integrity fell below 50% 1187 | -9/Materials | Lost 4 parts (1n3w) 1233 | -9/Materials | Discovered new exit (range 10) 1383 | -9/Materials | Repaired Core Shielding 1574 | -9/Materials | Build established: Hauler-Mutant 1898 | -9/Materials | Discovered new exit (range 5) 1967 | -9/Materials | Discovered new exit (range 6) 2036 | -9/Materials | Entered another Materials area 2036 | -8/Materials | Evolved 2 slots: Propulsion x1, Utility x1 2370 | -8/Materials | Discovered new exit (range 11) 2522 | -8/Materials | Discovered new exit (range 13) 2870 | -8/Materials | Discovered new exit (range 8) 3015 | -8/Materials | Discovered new exit (range 8) 3181 | -8/Materials | Repaired Lgt. Treads 3255 | -8/Materials | Identified exit to Garrison 3260 | -8/Materials | Entered Garrison 3268 | -8/Garrison | Installed Relay Interface Framework 3402 | -8/Garrison | Triggered checkpoint 3482 | -8/Garrison | Triggered checkpoint 3527 | -8/Garrison | Lost 3 parts (1n1u1w) 3539 | -8/Garrison | Garrison Relay disabled 3596 | -8/Garrison | Discovered new exit (range 14) 3615 | -8/Garrison | Entered Storage 4428 | -8/Storage | Met 01-MTF 5011 | -8/Storage | Discovered new exit (range 15) 5129 | -8/Storage | Garrison activated, responded to threat 5240 | -8/Storage | Destroyed 01-MTF 5245 | -8/Storage | Found 01-MTF's Shockpuncher 5615 | -8/Storage | First assault squad dispatched 5617 | -8/Storage | Repaired Centrium Light Armor Plating 5706 | -8/Storage | Core integrity fell below 50% 5922 | -8/Storage | Entered Factory 5922 | -7/Factory | Accompanied by 1 ally 5922 | -7/Factory | Evolved 2 slots: Utility x2 6069 | -7/Factory | Discovered new exit (range 15) 6177 | -7/Factory | Build established: Mutant 6386 | -7/Factory | Repaired Hrd. Medium Armor Plating 6483 | -7/Factory | Fabricated System Shield? 6586 | -7/Factory | Fabricated Cld. Gravmag System (x1) 6595 | -7/Factory | Discovered new exit (range 13) 6727 | -7/Factory | Identified exit to Garrison 6735 | -7/Factory | Entered Garrison 6735 | -7/Garrison | Accompanied by 1 ally 6779 | -7/Garrison | Build established: Hacker-Mutant 6873 | -7/Garrison | Discovered new exit (range 9) 6879 | -7/Garrison | Expanded RIF knowledge: Patrol Navigation 6891 | -7/Garrison | Entered Factory 7045 | -7/Factory | Discovered new exit (range 16) 7641 | -7/Factory | Repaired Broken Cld. Gravmag System 7647 | -7/Factory | Discovered new exit (range 15) 7955 | -7/Factory | Discovered new exit (range 16) 8222 | -7/Factory | Build established: Scavenger-Mutant 8296 | -7/Factory | Discovered new exit (range 16) 9007 | -7/Factory | Fabricated P-60 Hacker? 9305 | -7/Factory | Build established: Commander-Mutant 9349 | -7/Factory | Fabricated H-55 Commando? 9390 | -7/Factory | Fabricated Cld. Gravmag System (x1) 9893 | -7/Factory | Local fabrication network quarantined 10091 | -7/Factory | First assault squad dispatched 10115 | -7/Factory | Identified exit to Lower Caves 10268 | -7/Factory | Repaired Cld. Gravmag System 10496 | -7/Factory | Repaired Cld. Gravmag System 10522 | -7/Factory | Entered Lower Caves 10522 | -7/Lower Caves | Accompanied by 3 allies 10523 | -7/Lower Caves | Encountered a Warlord checkpoint 10524 | -7/Lower Caves | Attracted the attention of an 0b10 checkpoint 10656 | -7/Lower Caves | Build established: Hacker-Mutant 10676 | -7/Lower Caves | Identified exit to Lower Caves 10681 | -7/Lower Caves | Spotted B-75 Beast 10732 | -7/Lower Caves | Destroyed B-75 Beast 10961 | -7/Lower Caves | Build established: Mutant 10989 | -7/Lower Caves | Entered another Lower Caves area 11023 | -7/Lower Caves | Discovered new exit (range 6) 11050 | -7/Lower Caves | Spotted B-75 Beast 11145 | -7/Lower Caves | Learned 8 Factory zone layouts 11167 | -7/Lower Caves | Encountered a Warlord checkpoint 11251 | -7/Lower Caves | Discovered new exit (range 15) 11258 | -7/Lower Caves | Entered Data Miner 11258 | -7/Data Miner | Discovered new exit (range 6) 11266 | -7/Data Miner | Met Data Miner 11275 | -7/Data Miner | Learned location of Section 7 (-2) 11275 | -7/Data Miner | Acquired the access code to Warlord's prototype stash 11282 | -7/Data Miner | Received God Mode back door access code from Data Miner 11291 | -7/Data Miner | Entered Proximity Caves 11294 | -6/Proximity Caves | Spotted B-75 Beast 11319 | -6/Proximity Caves | Escorted by Enhanced Grunt 11406 | -6/Proximity Caves | Attracted the attention of an 0b10 checkpoint 11454 | -6/Proximity Caves | Discovered new exit (range 11) 11458 | -6/Proximity Caves | Entered Factory 11458 | -6/Factory | Evolved 2 slots: Power x1, Propulsion x1 11459 | -6/Factory | Identified exit to Factory 11556 | -6/Factory | Sucked down chute 11556 | -6/Factory | Entered Waste 11556 | -6/Waste | The area was eerily silent 11682 | -6/Waste | Found Adv. Powered Armor 11705 | -6/Waste | Discovered new exit (range 15) 11733 | -6/Waste | Entered Factory 11776 | -6/Factory | Build established: Scavenger-Mutant 11865 | -6/Factory | System Shield fried by hacking feedback 11894 | -6/Factory | Incoming investigation squad redirected 11983 | -6/Factory | Discovered exit to Factory (range 6) 12031 | -6/Factory | Discovered new exit (range 8) 12079 | -6/Factory | Incoming investigation squad redirected 12177 | -6/Factory | Discovered exit to Factory (range 7) 12355 | -6/Factory | Found Prototype Processor 12382 | -6/Factory | Build established: Hacker-Mutant 12400 | -6/Factory | Repaired Centrium Light Armor Plating? 12423 | -6/Factory | Repaired Broken Adv. Transmission Jammer 12463 | -6/Factory | Repaired Mni. Fusion Reactor 12509 | -6/Factory | Repaired Cld. Gravmag System? 12514 | -6/Factory | Repaired Cld. Gravmag System 12627 | -6/Factory | Repaired Broken Cld. Gravmag System 12697 | -6/Factory | Repaired Adv. Powered Armor 12810 | -6/Factory | Identified exit to Lower Caves 12876 | -6/Factory | Spotted B-75 Beast 13006 | -6/Factory | Discovered exit to Factory (range 8) 13076 | -6/Factory | Repaired Lrg. Storage Unit 13107 | -6/Factory | Repaired Broken Mni. Fusion Reactor? 13406 | -6/Factory | Repaired Cld. Gravmag System 13578 | -6/Factory | Repaired Centrium Light Armor Plating 13799 | -6/Factory | Identified exit to Garrison 14125 | -6/Factory | Discovered exit to Factory (range 12) 14796 | -6/Factory | Fabricated I-47 Archangel? 14814 | -6/Factory | Local fabrication network quarantined 14831 | -6/Factory | Fabricated P-70 Sage? 15066 | -6/Factory | Repaired Adv. Powered Armor 15117 | -6/Factory | Repaired Imp. Maneuvering Thrusters 15175 | -6/Factory | Repaired Mic. Fission Core 15195 | -6/Factory | Entered Garrison 15195 | -6/Garrison | Accompanied by 2 allies 15197 | -6/Garrison | Expanded RIF knowledge: Alert ID Control 15262 | -6/Garrison | Triggered checkpoint 15290 | -6/Garrison | Discovered exit to Factory (range 12) 15307 | -6/Garrison | Garrison Relay disabled 15308 | -6/Garrison | Triggered checkpoint 15336 | -6/Garrison | Sage 5a assimilated hostile L-41 Fighter 15337 | -6/Garrison | Sage 5a assimilated hostile B-48 Gladiator 15411 | -6/Garrison | Entered Factory 15411 | -5/Factory | Accompanied by 4 allies 15411 | -5/Factory | Evolved 2 slots: Utility x2 15619 | -5/Factory | Discovered new exit (range 8) 15711 | -5/Factory | First assault squad dispatched 15742 | -5/Factory | Spotted B-75 Beast 15888 | -5/Factory | Incoming assault squad redirected 15933 | -5/Factory | Discovered new exit (range 8) 15950 | -5/Factory | Discovered new exit (range 3) 15976 | -5/Factory | Identified exit to Upper Caves 16493 | -5/Factory | Repaired Adv. Powered Armor 16549 | -5/Factory | Repaired Centrium Light Armor Plating 17191 | -5/Factory | Repaired Cld. Gravmag System 17283 | -5/Factory | Repaired Cld. Gravmag System 17346 | -5/Factory | Repaired Cmb. Gravmag System? 17476 | -5/Factory | Fabricated H-66 Slayer (x2) 17923 | -5/Factory | Incoming investigation squad redirected 18069 | -5/Factory | Repaired Adv. Powered Armor 18128 | -5/Factory | Incoming assault squad redirected 18310 | -5/Factory | Repaired Cld. Gravmag System 18367 | -5/Factory | Repaired Centrium Light Armor Plating 19052 | -5/Factory | Fabricated H-66 Slayer (x2) 19552 | -5/Factory | Fabricated H-66 Slayer (x2) 19767 | -5/Factory | Repaired Adv. Powered Armor 19825 | -5/Factory | Repaired Cmb. Gravmag System 19871 | -5/Factory | Discovered new exit (range 6) 19991 | -5/Factory | Fabricated I-47 Archangel (x1) 20279 | -5/Factory | Build established: Commander-Mutant 20736 | -5/Factory | Repaired Hyp. Coil Gun 20808 | -5/Factory | Repaired Broken Power Sword 20831 | -5/Factory | Incoming assault squad redirected 20877 | -5/Factory | Repaired Adv. Powered Armor 20928 | -5/Factory | Incoming investigation squad redirected 20968 | -5/Factory | Repaired Cld. Gravmag System? 21062 | -5/Factory | Fabricated H-66 Slayer (x2) 21135 | -5/Factory | Core integrity fell below 50% 21139 | -5/Factory | Incoming assault squad redirected 21177 | -5/Factory | Lost 3 parts (1n1u1w) 21316 | -5/Factory | Entered Upper Caves 21316 | -5/Upper Caves | Accompanied by 7 allies 21399 | -5/Upper Caves | Encountered a Warlord checkpoint 21406 | -5/Upper Caves | Identified exit to Upper Caves 21865 | -5/Upper Caves | Entered another Upper Caves area 21865 | -5/Upper Caves | Accompanied by 7 allies 21873 | -5/Upper Caves | Learned location of Warlord (-4) 21913 | -5/Upper Caves | Attracted the attention of an 0b10 checkpoint 22192 | -5/Upper Caves | Build established: Scavenger-Mutant 22300 | -5/Upper Caves | Learned location of 1 exit from Factory 22336 | -5/Upper Caves | Encountered a Warlord checkpoint 22465 | -5/Upper Caves | Discovered new exit (range 12) 22713 | -5/Upper Caves | Entered Zhirov 22713 | -5/Zhirov | Accompanied by 3 allies 22713 | -5/Zhirov | Discovered new exit (range 4) 22732 | -5/Zhirov | Met Zhirov 22759 | -5/Zhirov | Learned location of Quarantine (-2) 22759 | -5/Zhirov | Learned location of Testing (-3) 22759 | -5/Zhirov | Learned location of Command (-1) 22765 | -5/Zhirov | Zhirov requested help retrieving the SGEMP Prototype 22783 | -5/Zhirov | Found Alien Artifact 22783 | -5/Zhirov | Identified Integrated Reactor 22783 | -5/Zhirov | Installed Integrated Reactor, increased core energy generation (+10) 22813 | -5/Zhirov | Found Alien Artifact 22860 | -5/Zhirov | Entered Proximity Caves 22860 | -4/Proximity Caves | Accompanied by 3 allies 22967 | -4/Proximity Caves | Learned Research non-interactive machine intel 23052 | -4/Proximity Caves | Attracted the attention of an 0b10 checkpoint 23052 | -4/Proximity Caves | Lost 4 parts (1n2u1w) 23184 | -4/Proximity Caves | Discovered new exit (range 4) 23198 | -4/Proximity Caves | Entered Factory 23198 | -4/Factory | Evolved 2 slots: Propulsion x1, Utility x1 23199 | -4/Factory | Identified exit to Upper Caves 23441 | -4/Factory | Sucked down chute 23441 | -4/Factory | Entered Waste 23452 | -4/Waste | Found Prototype Launcher 23456 | -4/Waste | EMP discharged 23475 | -4/Waste | Spotted C-40 Crusher 23476 | -4/Waste | Spotted C-40 Crusher 23486 | -4/Waste | Spotted C-40 Crusher 23492 | -4/Waste | Spotted C-40 Crusher 23492 | -4/Waste | Spotted C-40 Crusher 23494 | -4/Waste | Build established: Hacker-Mutant 23512 | -4/Waste | Spotted C-40 Crusher 23534 | -4/Waste | Discovered new exit (range 11) 23548 | -4/Waste | Entered Factory 23641 | -4/Factory | Repaired Centrium Light Armor Plating? 23700 | -4/Factory | Repaired Broken Adv. Reaction Control System 23738 | -4/Factory | Identified Point Singularity Launcher 24026 | -4/Factory | Identified exit to Garrison 24091 | -4/Factory | Fabricated Mni. Smartbomb Launcher (x1) 24177 | -4/Factory | Fabricated Mni. Smartbomb Launcher (x1) 24182 | -4/Factory | Garrison activated, responded to threat 24302 | -4/Factory | Entered Garrison 24302 | -4/Garrison | Accompanied by 2 allies 24342 | -4/Garrison | Spotted B-86 Titan 24375 | -4/Garrison | Triggered checkpoint 24416 | -4/Garrison | Triggered checkpoint 24438 | -4/Garrison | Destroyed B-86 Titan 24442 | -4/Garrison | Garrison Relay disabled 24504 | -4/Garrison | Discovered new exit (range 15) 24583 | -4/Garrison | Triggered checkpoint 24627 | -4/Garrison | Discovered new exit (range 14) 24658 | -4/Garrison | Triggered checkpoint 24658 | -4/Garrison | Triggered checkpoint 24674 | -4/Garrison | Discovered new exit (range 13) 24681 | -4/Garrison | Expanded RIF knowledge: Robot Detection 24683 | -4/Garrison | Entered Research 24683 | -3/Research | Evolved 2 slots: Utility x2 24684 | -3/Research | Loaded intel: 87 non-interactive machine locations 24770 | -3/Research | Spotted B-86 Titan 24776 | -3/Research | Discovered new exit (range 10) 24844 | -3/Research | Identified exit to Testing 24846 | -3/Research | Entered Testing 24872 | -3/Testing | Found Prototype Energy Cannon 24872 | -3/Testing | Identified Cld. Nova Cannon 24929 | -3/Testing | Spotted Striker 24944 | -3/Testing | Identified exit to Research 24963 | -3/Testing | Found Vibroblade 24971 | -3/Testing | Found Tachyon Dispersion Ray 24980 | -3/Testing | Found Exp. Transmission Jammer 25015 | -3/Testing | Incoming investigation squad redirected 25082 | -3/Testing | Found Ghost Barrier 25109 | -3/Testing | Entered Research 25109 | -2/Research | Evolved 2 slots: Propulsion x1, Utility x1 25148 | -2/Research | Identified exit to Quarantine 25163 | -2/Research | Fabricated Exp. Sensor Array? 25233 | -2/Research | Repaired Adv. Reaction Control System? 25288 | -2/Research | Discovered new exit (range 15) 25299 | -2/Research | Identified exit to Access 25432 | -2/Research | Build established: Wizard-Mutant 25516 | -2/Research | Destroyed 7 combat bots 25531 | -2/Research | Repaired Adv. Cooling System 25556 | -2/Research | Repaired Antigrav Array 25673 | -2/Research | Entered Quarantine 25675 | -2/Quarantine | Identified Transdimensional Reconstructor 25716 | -2/Quarantine | Scanned by Researcher 25748 | -2/Quarantine | Allied Derelicts emerged from ambush trap array 25761 | -2/Quarantine | Found Core Stripper 25776 | -2/Quarantine | Central database locked down 25849 | -2/Quarantine | Incoming investigation squad redirected 25965 | -2/Quarantine | Found Matter Drive 26026 | -2/Quarantine | Discovered exit to Access (range 15) 26040 | -2/Quarantine | Entered Access 26040 | -1/Access | Evolved 2 slots: Utility x2 26068 | -1/Access | Lost 4 parts (1p2n1u) 26294 | -1/Access | Spotted B-99 Colossus 26415 | -1/Access | Lost 6 parts (1p1n4u) 26571 | -1/Access | Warped through subspace 26572 | -1/Access | Core integrity fell below 50% 26599 | -1/Access | Lost 18 parts (1p5n10u2w) 26685 | -1/Access | Core integrity fell below 20% 26688 | -1/Access | Destroyed by G-73 Enforcer with Phase Gun Last Messages --------------- 26664_ W-44 Eye distress signal jammed. 26667_ Exp. Transmission Jammer destroyed. 26671_ Slug penetrates Wall. 26672_ Penetrated by Slug. 26672_ Slug penetrates Wall. 26672_ K-01 Serf destroyed. 26673_ K-01 Serf cleans the Terminal. 26674_ Penetrated by Slug. 26674_ Imp. System Shield destroyed. 26675_ Penetrated by Slug. 26677_ Slug penetrates K-01 Serf. 26678_ Slug penetrates Wall. 26678_ K-01 Serf collects debris. 26678_ Connecting with Terminal... 26678_ ALERT: Suspicious activity at Terminal A020. Dispatching Investigation squad. 26679_ Gyrokinetic Inverter destroyed. 26679_ Penetrated by Slug. 26683_ Kinetic Spear destroyed. 26683_ Detecting nearby Garrison Access. Map ----- +----------------------------------------------------+ | ?????????????? """""# # #???????????? | | ?????????????? """""# # #???????????? | | ?????????????? """""# # #???????????? | | ?????????????? """""# # #???????????? | | ?????????????? ?????# # #???????????? | | ????????????????????????# ########???????????? | | ????????????????????????# #??????????????????? | | ????????????????????????# #??????????????????? | | ????????????????????????# ########???????????? | | ?????????????????????#?## # ????????????? | | ?????????????????????# ## # ????????????? | | ???????????????#######+## # ????????????? | | ???????????????# # + ????????????? | | ???????????????# | # # ????????????? | | ???????????????# [ # k ########???????????? | | ???????????????# # # ????????????? | | ???????????????# #A R # ????????????? | | ???????????????# " #k # ????????????? | | ???????????????# """ #k # = ????????????? | | ???????????????# """ + g ????????????? | | ???????????????# " # gg# ????????????? | | ???????????????########## # "" ?????????????? | | ????????????????????????# g # "???????????????? | | ????????????????????????# #####??????????????? | | ????????????????????????# #??????????????????? | | ??????????????#####???#?#@ Ak #??????????????????? | | ??????????????? = # #?# ##??????#??????????? | | ??????????????? # #?# ## #??????????? | | ??????????????? # #?# ## #??????????? | | ??????????????? / ### ## #??????????? | | ??????????????? # ## u # #??????????? | | ??????????????? # ## k # #??????????? | | ??????????????? # s # #??????????? | | ??????????????????# s uY + / #??????????? | | ??????????????????# s # #??????????? | | ???????????????######+## # #??????????? | | ???????????????? " # t # #??????????? | | ???????????????? """ ### u ##########??????????? | | ???????????????? ?"" #?# #??# ????????????? | | ????????????????? ? #?#k #??# ####???????????? | | ????????????????? = #?# #### ###????????????? | | ????????????????? #?# ## #????????????? | | ???????????????????????#?# "" #????????????? | | ?????????????????????????# T" #????????????? | | ?????????????????????????# #????????????? | | ?????????????????????????###### # ??? ?????? | | ??????????????????????????????## ## ?? ?????? | | ???????????????????????????????# ## ?????? | | ???????????????????????????????# ## ?????? | | ????????????????????############ ####+####### | +----------------------------------------------------+ Best States ------------- Heat Dissipation 83 Energy Generation 55 Energy Capacity 580 Matter Stores 300 Matter Capacity 300 Sight Range 22 Robot Scan Range 30 Terrain Scan Density 10 Jamming Range 22 EM Shielding 2 Armor Coverage 775 Resistance: EM 25 Core Shielding 20 Utility Shielding 66 Melee Speed Boost 30 Evasion (%) 72 Core Analysis 6 Armor Integrity Analysis 66 Recoil Reduction 3 Offensive Hacking 34 Defensive Hacking 42 Item Schematics ----------------- System Shield | -8/Materials | Hacked Imp. VTOL Module | -8/Materials | Scanalyzed Cld. Gravmag System | -7/Factory | Scanalyzed Mni. Fusion Reactor | -7/Factory | Scanalyzed Centrium Light Armor Plating | -7/Factory | Scanalyzed Remote Datajack | -7/Factory | Scanalyzed Combat Drone Bay | -7/Data Miner | Free Lgt. Regenerative Plating | -7/Data Miner | Free Exp. Sensor Array | -7/Data Miner | Free Exp. Terrain Scanner | -7/Data Miner | Free Exp. ECM Suite | -7/Data Miner | Free Cloaking Device | -7/Data Miner | Free Mni. Smartbomb Launcher | -7/Data Miner | Free Adv. Transmission Jammer | -6/Factory | Scanalyzed Hvy. Beamcaster | -6/Factory | Scanalyzed Adv. Powered Armor | -6/Factory | Scanalyzed Imp. System Shield | -6/Factory | Hacked Imp. Arc Projector | -5/Factory | Scanalyzed Reaction Control System | -5/Factory | Hacked Assault Drone Bay | -5/Zhirov | Free Exp. Heat Sink | -5/Zhirov | Free Exp. Optical Array | -5/Zhirov | Free Imp. Arc Thrower | -5/Zhirov | Free Enh. Force Lance | -4/Factory | Hacked Point Singularity Launcher | -3/Testing | Scanalyzed Adv. Actuator Array | -3/Testing | Hacked Robot Schematics ------------------ M-28 Smith | -8/Materials | Hacked G-47 Trooper | -8/Materials | Hacked P-60 Hacker | -7/Factory | Hacked H-55 Commando | -7/Factory | Hacked S-27 Virus | -7/Data Miner | Free G-50 Soldier | -7/Data Miner | Free G-67 Veteran | -7/Data Miner | Free X-72 Disruptor | -7/Data Miner | Free H-66 Slayer | -7/Data Miner | Free P-70 Sage | -7/Data Miner | Free I-36 Angel | -7/Data Miner | Free I-47 Archangel | -7/Data Miner | Free Fabricated ------------ System Shield | x1 | -7/Factory Cld. Gravmag System | x1 | -7/Factory P-60 Hacker | x2 | -7/Factory H-55 Commando | x2 | -7/Factory Cld. Gravmag System | x1 | -7/Factory I-47 Archangel | x1 | -6/Factory P-70 Sage | x2 | -6/Factory H-66 Slayer | x2 | -5/Factory H-66 Slayer | x2 | -5/Factory H-66 Slayer | x2 | -5/Factory I-47 Archangel | x1 | -5/Factory H-66 Slayer | x2 | -5/Factory Mni. Smartbomb Launcher | x1 | -4/Factory Mni. Smartbomb Launcher | x1 | -4/Factory Exp. Sensor Array | x1 | -2/Research Alien Tech Used ----------------- Integrated Reactor Matter Drive Transdimensional Reconstructor Achievements -------------- None Challenges ------------ None Game ------ Seed ActuatorHugeJammer Manual? 0 Play Time 05:05:49 Cumulative 577.4 hours Start 2020.06.11 @ 02:57:52 End 2020.06.13 @ 13:19:10 Sessions 5 Manual Loads 0 Difficulty Rogue Special Mode None Game No. 426 Rogue 422 Adventurer 4 Explorer 0 Win Type - Total 66 Types 54/5/3/2/2/0/0 Lore% 94 Gallery% 96 Achievement% 96 Wizard Run 0 Options --------- ASCII 0 Keyboard 0 Movement Vi Keybinds 0 Fullscreen 0 Font 16/Terminus Map View 76x50 Tactical HUD 1 Map Filters NONE Filters NONE Steam 1 RUN: c2f3f97b-346a-4be9-8ff7-c1b1cb49a6de